fUSD/lending_fUSD_20250309
["ID","MTS","AMOUNT","RATE_DAILY","PERIOD"]
[355763980,1741545043934,-500.0,8.219e-05,2]
[355763981,1741545043943,-1154.42,8.219e-05,2]
[355763982,1741545043952,-511.98645253,8.219e-05,2]
[355763984,1741545043962,-503.59759312,8.219e-05,2]
[355763986,1741545043972,-1322.95,8.219e-05,2]
[355763988,1741545043981,-507.54766433,8.219e-05,2]
[355763991,1741545043991,-1652.94,8.219e-05,2]
[355763993,1741545044000,-500.0,8.219e-05,2]
[355763995,1741545044010,-1811.24,8.219e-05,2]
[355763997,1741545044020,-507.5589795,8.219e-05,2]
[355763999,1741545044033,-508.86940082,8.219e-05,2]
[355764001,1741545044043,-500.0,8.219e-05,2]
[355764003,1741545044053,-500.0,8.219e-05,2]
[355764005,1741545044064,-500.0,8.219e-05,2]
[355764007,1741545044074,-503.77554111,8.219e-05,2]
[355764008,1741545044084,-500.0,8.219e-05,2]
[355764010,1741545044095,-500.0,8.219e-05,2]
[355764011,1741545044104,-539.28596771,8.219e-05,2]
[355764012,1741545044114,-1000.0,8.219e-05,2]
[355764013,1741545044124,-634.86,8.219e-05,2]
[355764014,1741545044134,-500.0,8.219e-05,2]
[355764015,1741545044144,-500.0,8.219e-05,2]
[355764016,1741545044153,-1507.74,8.219e-05,2]
[355764017,1741545044163,-505.3815206,8.219e-05,2]
[355764018,1741545044173,-500.0,8.219e-05,2]
[355764019,1741545044183,-500.0,8.219e-05,2]
[355764020,1741545044193,-505.78221735,8.219e-05,2]
[355764021,1741545044203,-500.0,8.219e-05,2]
[355764022,1741545044215,-509.01531643,8.219e-05,2]
[355764023,1741545044224,-646.81,8.219e-05,2]
[355764024,1741545044234,-500.0,8.219e-05,2]
[355764025,1741545044244,-511.92056915,8.219e-05,2]
[355764026,1741545044255,-500.0,8.219e-05,2]
[355764027,1741545044264,-500.0,8.219e-05,2]
[355764028,1741545044277,-969.21,8.219e-05,2]
[355764029,1741545044287,-500.0,8.219e-05,2]
[355764030,1741545044297,-513.80900646,8.219e-05,2]
[355764031,1741545044307,-1250.77,8.219e-05,2]
[355764032,1741545044316,-697.95,8.219e-05,2]
[355764033,1741545044324,-500.0,8.219e-05,2]
[355764034,1741545044334,-500.0,8.219e-05,2]
[355764035,1741545044345,-860.58,8.219e-05,2]
[355764036,1741545044354,-500.0,8.219e-05,2]
[355764037,1741545044364,-500.0,8.219e-05,2]
[355764038,1741545044373,-500.0,8.219e-05,2]
[355764039,1741545044383,-487.101552,8.219e-05,2]
[355764040,1741545044392,-500.0,8.219e-05,2]
[355764041,1741545044402,-1141.96,8.219e-05,2]
[355764042,1741545044412,-500.0,8.219e-05,2]
[355764043,1741545044422,-2219.03,8.219e-05,2]
[355764044,1741545044431,-506.35044432,8.219e-05,2]
[355764045,1741545044443,-761.83,8.219e-05,2]
[355764046,1741545044454,-509.65448517,8.219e-05,2]
[355764047,1741545044464,-500.0,8.219e-05,2]
[355764048,1741545044474,-500.0,8.219e-05,2]
[355764049,1741545044483,-984.95,8.219e-05,2]
[355764050,1741545044494,-500.0,8.219e-05,2]
[355764051,1741545044504,-500.0,8.219e-05,2]
[355764052,1741545044513,-500.0,8.219e-05,2]
[355764053,1741545044522,-517.82149672,8.219e-05,2]
[355764054,1741545044536,-713.72,8.219e-05,2]
[355764055,1741545044546,-512.85210876,8.219e-05,2]
[355764056,1741545044555,-500.0,8.219e-05,2]
[355764057,1741545044565,-509.61581154,8.219e-05,2]
[355764058,1741545044575,-748.23,8.219e-05,2]
[355764059,1741545044585,-1019.61,8.219e-05,2]
[355764060,1741545044595,-508.7865236,8.219e-05,2]
[355764061,1741545044605,-8890.69,8.219e-05,2]
[355764062,1741545044615,-1443.09,8.219e-05,2]
[355764063,1741545044624,-515.37358047,8.219e-05,2]
[355764064,1741545044634,-500.0,8.219e-05,2]
[355764065,1741545044644,-1032.88,8.219e-05,2]
[355764066,1741545044654,-527.42253429,8.219e-05,2]
[355764067,1741545044664,-918.81,8.219e-05,2]
[355764068,1741545044673,-500.0,8.219e-05,2]
[355764069,1741545044683,-500.0,8.219e-05,2]
[355764070,1741545044692,-500.0,8.219e-05,2]
[355764071,1741545044701,-531.97,8.219e-05,2]
[355764072,1741545044711,-500.0,8.219e-05,2]
[355764073,1741545044721,-500.0,8.219e-05,2]
[355764074,1741545044731,-500.0,8.219e-05,2]
[355764075,1741545044741,-1938.67,8.219e-05,2]
[355764076,1741545044751,-500.0,8.219e-05,2]
[355764077,1741545044761,-505.56500285,8.219e-05,2]
[355764078,1741545044771,-500.0,8.219e-05,2]
[355764079,1741545044786,-500.0,8.219e-05,2]
[355764080,1741545044800,-500.0,8.219e-05,2]
[355764081,1741545044810,-1119.34,8.219e-05,2]
[355764082,1741545044820,-500.0,8.219e-05,2]
[355764083,1741545044829,-508.82996015,8.219e-05,2]
[355764084,1741545044838,-1570.28,8.219e-05,2]
[355764085,1741545044848,-500.0,8.219e-05,2]
[355764086,1741545044857,-500.0,8.219e-05,2]
[355764087,1741545044867,-840.99,8.219e-05,2]
[355764088,1741545044876,-500.0,8.219e-05,2]
[355764089,1741545044885,-606.8113451,8.219e-05,2]
[355764090,1741545044895,-500.0,8.219e-05,2]
[355764091,1741545044904,-500.0,8.219e-05,2]
[355764092,1741545044914,-2730.52,8.219e-05,2]
[355764093,1741545044923,-500.0,8.219e-05,2]
[355764094,1741545044933,-500.0,8.219e-05,2]
[355764095,1741545044943,-1513.83,8.219e-05,2]
[355764096,1741545044952,-500.0,8.219e-05,2]
[355764097,1741545044962,-505.13566889,8.219e-05,2]
[355764098,1741545044971,-518.83584012,8.219e-05,2]
[355764099,1741545044981,-500.0,8.219e-05,2]
[355764100,1741545044990,-1314.75,8.219e-05,2]
[355764101,1741545045000,-500.0,8.219e-05,2]
[355764102,1741545045010,-500.0,8.219e-05,2]
[355764103,1741545045020,-524.5053808,8.219e-05,2]
[355764104,1741545045033,-500.0,8.219e-05,2]
[355764105,1741545045043,-532.97093677,8.219e-05,2]
[355764106,1741545045053,-500.0,8.219e-05,2]
[355764107,1741545045063,-507.31227456,8.219e-05,2]
[355764108,1741545045073,-500.0,8.219e-05,2]
[355764109,1741545045082,-667.37,8.219e-05,2]
[355764110,1741545045092,-501.52804611,8.219e-05,2]
[355764111,1741545045102,-500.0,8.219e-05,2]
[355764112,1741545045112,-500.0,8.219e-05,2]
[355764113,1741545045121,-761.41,8.219e-05,2]
[355764114,1741545045131,-509.00614521,8.219e-05,2]
[355764115,1741545045140,-500.0,8.219e-05,2]
[355764116,1741545045150,-500.0,8.219e-05,2]
[355764117,1741545045159,-495.01828727,8.219e-05,2]
[355764118,1741545045169,-521.5408273,8.219e-05,2]
[355764119,1741545045179,-500.0,8.219e-05,2]
[355764120,1741545045188,-784.65,8.219e-05,2]
[355764121,1741545045198,-501.25436464,8.219e-05,2]
[355764122,1741545045208,-511.26304556,8.219e-05,2]
[355764123,1741545045217,-500.0,8.219e-05,2]
[355764124,1741545045227,-507.49982815,8.219e-05,2]
[355764125,1741545045236,-670.18,8.219e-05,2]
[355764126,1741545045246,-560.26515898,8.219e-05,2]
[355764127,1741545045425,-782.09,8.219e-05,2]
[355764128,1741545045437,-511.56888541,8.219e-05,2]
[355764129,1741545045449,-511.54732888,8.219e-05,2]
[355764130,1741545045462,-1853.57,8.219e-05,2]
[355764131,1741545045475,-655.2,8.219e-05,2]
[355764132,1741545045486,-1152.16,8.219e-05,2]
[355764133,1741545045496,-508.19769141,8.219e-05,2]
[355764134,1741545045507,-510.19956579,8.219e-05,2]
[355764135,1741545045518,-500.0,8.219e-05,2]
[355764136,1741545045530,-519.56969861,8.219e-05,2]
[355764137,1741545045541,-1228.05,8.219e-05,2]
[355764138,1741545045552,-589.42544057,8.219e-05,2]
[355764139,1741545045563,-500.0,8.219e-05,2]
[355764140,1741545045573,-779.91,8.219e-05,2]
[355764141,1741545045583,-1302.49,8.219e-05,2]
[355764142,1741545045594,-4813.01,8.219e-05,2]
[355764143,1741545045604,-500.0,8.219e-05,2]
[355764144,1741545045615,-500.0,8.219e-05,2]
[355764145,1741545045625,-837.6,8.219e-05,2]
[355764146,1741545045636,-506.87356152,8.219e-05,2]
[355764147,1741545045646,-824.39,8.219e-05,2]
[355764148,1741545045656,-500.0,8.219e-05,2]
[355764149,1741545045667,-515.46834122,8.219e-05,2]
[355764150,1741545045677,-757.03,8.219e-05,2]
[355764151,1741545045688,-500.0,8.219e-05,2]
[355764152,1741545045699,-510.27823916,8.219e-05,2]
[355764153,1741545045709,-506.76239874,8.219e-05,2]
[355764154,1741545045719,-500.0,8.219e-05,2]
[355764155,1741545045728,-499.09662994,8.219e-05,2]
[355764156,1741545045738,-500.0,8.219e-05,2]
[355764157,1741545045747,-1016.47,8.219e-05,2]
[355764158,1741545045757,-500.77024144,8.219e-05,2]
[355764159,1741545045767,-500.0,8.219e-05,2]
[355764160,1741545045779,-517.22007407,8.219e-05,2]
[355764161,1741545045789,-1509.82,8.219e-05,2]
[355764162,1741545045798,-831.54,8.219e-05,2]
[355764163,1741545045808,-502.19637461,8.219e-05,2]
[355764164,1741545045819,-500.0,8.219e-05,2]
[355764165,1741545045829,-500.0,8.219e-05,2]
[355764166,1741545045840,-500.0,8.219e-05,2]
[355764167,1741545045849,-523.14352259,8.219e-05,2]
[355764168,1741545045860,-1858.78,8.219e-05,2]
[355764169,1741545045871,-790.02,8.219e-05,2]
[355764170,1741545045881,-517.6716205,8.219e-05,2]
[355764171,1741545045892,-508.55094742,8.219e-05,2]
[355764172,1741545045903,-512.68321142,8.219e-05,2]
[355764173,1741545045913,-500.0,8.219e-05,2]
[355764174,1741545045923,-842.95,8.219e-05,2]
[355764175,1741545045934,-506.0532973,8.219e-05,2]
[355764176,1741545045946,-502.48392964,8.219e-05,2]
[355764177,1741545045957,-828.95,8.219e-05,2]
[355764178,1741545045968,-500.0,8.219e-05,2]
[355764179,1741545045979,-500.0,8.219e-05,2]
[355764180,1741545045990,-500.0,8.219e-05,2]
[355764181,1741545046000,-2065.13,8.219e-05,2]
[355764182,1741545046010,-781.76,8.219e-05,2]
[355764183,1741545046020,-599.72441857,8.219e-05,2]
[355764184,1741545046037,-500.0,8.219e-05,2]
[355764186,1741545046048,-523.19747996,8.219e-05,2]
[355764187,1741545046058,-504.6255803,8.219e-05,2]
[355764189,1741545046068,-500.0,8.219e-05,2]
[355764190,1741545046078,-506.23045178,8.219e-05,2]
[355764191,1741545046090,-724.44,8.219e-05,2]
[355764192,1741545046101,-508.29670723,8.219e-05,2]
[355764193,1741545046111,-9111.5,8.219e-05,2]
[355764194,1741545046121,-500.0,8.219e-05,2]
[355764195,1741545046132,-500.0,8.219e-05,2]
[355764196,1741545046143,-505.27905525,8.219e-05,2]
[355764197,1741545046153,-500.0,8.219e-05,2]
[355764198,1741545046164,-500.0,8.219e-05,2]
[355764199,1741545046175,-500.0,8.219e-05,2]
[355764200,1741545046185,-3363.94,8.219e-05,2]
[355764201,1741545046196,-500.0,8.219e-05,2]
[355764202,1741545046209,-521.97680646,8.219e-05,2]
[355764203,1741545046219,-500.0,8.219e-05,2]
[355764204,1741545046229,-500.0,8.219e-05,2]
[355764205,1741545046240,-500.0,8.219e-05,2]
[355764206,1741545046251,-504.88680461,8.219e-05,2]
[355764207,1741545046262,-505.65066637,8.219e-05,2]
[355764209,1741545046273,-500.55567713,8.219e-05,2]
[355764211,1741545046292,-500.0,8.219e-05,2]
[355764213,1741545046303,-500.0,8.219e-05,2]
[355764215,1741545046314,-984.17,8.219e-05,2]
[355764216,1741545046325,-500.0,8.219e-05,2]
[355764217,1741545046335,-837.7,8.219e-05,2]
[355764218,1741545046346,-500.0,8.219e-05,2]
[355764219,1741545046356,-506.9421069,8.219e-05,2]
[355764220,1741545046366,-507.92857132,8.219e-05,2]
[355764221,1741545046376,-1016.5,8.219e-05,2]
[355764222,1741545046386,-500.0,8.219e-05,2]
[355764223,1741545046396,-500.0,8.219e-05,2]
[355764224,1741545046405,-167.32505033,8.219e-05,2]
[355764225,1741545046415,-531.71,8.219e-05,2]
[355764226,1741545046425,-517.44478561,8.219e-05,2]
[355764227,1741545046436,-500.0,8.219e-05,2]
[355764228,1741545046449,-500.0,8.219e-05,2]
[355764229,1741545046459,-500.0,8.219e-05,2]
[355764230,1741545046470,-370.16267135,8.219e-05,2]
[355764231,1741545046480,-506.00286591,8.219e-05,2]
[355764232,1741545046491,-769.27,8.219e-05,2]
[355764233,1741545046501,-511.3344362,8.219e-05,2]
[355764234,1741545046511,-2901.04,8.219e-05,2]
[355764235,1741545046521,-912.65,8.219e-05,2]
[355764236,1741545046536,-500.0,8.219e-05,2]
[355764237,1741545046547,-101526.99417869,8.219e-05,2]
[355764238,1741545046576,-546.15728225,8.219e-05,2]
[355764239,1741545046589,-28219.55979151,8.219e-05,2]
[355764240,1741545046601,-941.68,8.219e-05,2]
[355764241,1741545046635,-2802.47972083,8.219e-05,2]
[355764242,1741545046647,-519.3988,8.219e-05,2]
[355764243,1741545046659,-1399945.13753842,8.219e-05,2]
[355764244,1741545046669,-156.77,8.219e-05,2]
[355764245,1741545046678,-250.0,8.219e-05,2]
[355764246,1741545046688,-1091.27,8.219e-05,2]
[355764247,1741545046698,-1000.0,8.219e-05,2]
[355764248,1741545046708,-1103.0,8.219e-05,2]
[355764249,1741545046718,-330.21,8.227e-05,2]
[355764250,1741545046729,-179.21,8.229e-05,2]
[355764251,1741545046739,-330.21,8.252e-05,2]
[355764252,1741545046750,-179.21,8.254e-05,2]
[355764253,1741545046760,-330.21,8.277e-05,2]
[355764254,1741545046771,-179.21,8.279e-05,2]
[355764255,1741545046783,-330.21,8.301e-05,2]
[355764256,1741545046793,-179.21,8.303e-05,2]
[355764257,1741545046803,-330.21,8.326e-05,2]
[355764258,1741545046814,-179.21,8.328e-05,2]
[355764259,1741545046824,-529.93,8.33e-05,2]
[355764260,1741545046834,-253.39,8.33e-05,2]
[355764261,1741545046844,-233.81,8.33e-05,2]
[355764262,1741545046855,-330.21,8.351e-05,2]
[355764263,1741545046864,-300.0,8.356e-05,2]
[355764264,1741545046875,-3031.28772941,8.4e-05,2]
[355764265,1741545046885,-151.0,8.493e-05,2]
[355764266,1741545046895,-151.0,8.493e-05,2]
[355764267,1741545046905,-151.0,8.493e-05,2]
[355764268,1741545046914,-151.0,8.493e-05,2]
[355764269,1741545046923,-151.0,8.493e-05,2]
[355764270,1741545046933,-151.0,8.493e-05,2]
[355764271,1741545046944,-151.0,8.493e-05,2]
[355764272,1741545046954,-151.0,8.493e-05,2]
[355764273,1741545046965,-151.0,8.493e-05,2]
[355764274,1741545046975,-151.0,8.493e-05,2]
[355764275,1741545046985,-151.0,8.493e-05,2]
[355764276,1741545046995,-151.0,8.493e-05,2]
[355764277,1741545047005,-151.0,8.493e-05,2]
[355764278,1741545047014,-151.0,8.493e-05,2]
[355764279,1741545047024,-151.0,8.493e-05,2]
[355764280,1741545047039,-151.0,8.493e-05,2]
[355764281,1741545047048,-151.0,8.493e-05,2]
[355764282,1741545047058,-151.0,8.493e-05,2]
[355764283,1741545047067,-151.0,8.493e-05,2]
[355764284,1741545047078,-151.0,8.493e-05,2]
[355764285,1741545047088,-151.0,8.493e-05,2]
[355764286,1741545047098,-506.90026733,8.493e-05,2]
[355764287,1741545047108,-511.4257558,8.493e-05,2]
[355764288,1741545047119,-494.82233086,8.493e-05,2]
[355764289,1741545047129,-490.0,8.493e-05,2]
[355764290,1741545047139,-505.41091758,8.493e-05,2]
[355764291,1741545047149,-527.39370091,8.493e-05,2]
[355764292,1741545047159,-595.21648223,8.493e-05,2]
[355764293,1741545047169,-502.77105969,8.493e-05,2]
[355764294,1741545047179,-510.89721588,8.493e-05,2]
[355764295,1741545047189,-516.00277492,8.493e-05,2]
[355764296,1741545047199,-504.9470446,8.493e-05,2]
[355764297,1741545047209,-500.0,8.493e-05,2]
[355764298,1741545047219,-500.0,8.493e-05,2]
[355764299,1741545047229,-517.45500859,8.493e-05,2]
[355764300,1741545047238,-364.86847968,8.493e-05,2]
[355764301,1741545047248,-500.0,8.493e-05,2]
[355764302,1741545047257,-591.99513454,8.493e-05,2]
[355764303,1741545047267,-504.16034882,8.493e-05,2]
[355764304,1741545047279,-511.95504631,8.493e-05,2]
[355764305,1741545047289,-510.86239539,8.493e-05,2]
[355764306,1741545047299,-510.24083963,8.493e-05,2]
[355764307,1741545047309,-500.0,8.493e-05,2]
[355764308,1741545047320,-504.45095604,8.493e-05,2]
[355764309,1741545047329,-500.0,8.493e-05,2]
[355764310,1741545047339,-511.19947733,8.493e-05,2]
[355764311,1741545047348,-500.0,8.493e-05,2]
[355764312,1741545047358,-510.37622423,8.493e-05,2]
[355764313,1741545047368,-500.0,8.493e-05,2]
[355764314,1741545047379,-500.0,8.493e-05,2]
[355764315,1741545047389,-507.6189858,8.493e-05,2]
[355764316,1741545047400,-500.0,8.493e-05,2]
[355764317,1741545047410,-508.8003057,8.493e-05,2]
[355764318,1741545047420,-510.53308249,8.493e-05,2]
[355764319,1741545047430,-508.62041203,8.493e-05,2]
[355764320,1741545047440,-501.96793643,8.493e-05,2]
[355764321,1741545047450,-517.84468504,8.493e-05,2]
[355764322,1741545047462,-522.28406937,8.493e-05,2]
[355764323,1741545047472,-500.0,8.493e-05,2]
[355764324,1741545047483,-509.63649932,8.493e-05,2]
[355764325,1741545047493,-500.0,8.493e-05,2]
[355764326,1741545047503,-500.0,8.493e-05,2]
[355764327,1741545047514,-500.0,8.493e-05,2]
[355764328,1741545047524,-500.0,8.493e-05,2]
[355764329,1741545047538,-500.0,8.493e-05,2]
[355764330,1741545047548,-500.0,8.493e-05,2]
[355764331,1741545047560,-1253.07583083,8.493e-05,2]
[355764332,1741545047570,-500.0,8.493e-05,2]
[355764333,1741545047579,-500.0,8.493e-05,2]
[355764334,1741545047589,-500.0,8.493e-05,2]
[355764335,1741545047600,-500.0,8.493e-05,2]
[355764336,1741545047610,-509.80125735,8.493e-05,2]
[355764337,1741545047621,-500.0,8.493e-05,2]
[355764338,1741545047631,-500.0,8.493e-05,2]
[355764339,1741545047641,-500.0,8.493e-05,2]
[355764340,1741545047651,-500.0,8.493e-05,2]
[355764341,1741545047661,-500.0,8.493e-05,2]
[355764342,1741545047671,-500.0,8.493e-05,2]
[355764343,1741545047680,-500.0,8.493e-05,2]
[355764344,1741545047690,-500.0,8.493e-05,2]
[355764345,1741545047700,-616.65,8.493e-05,2]
[355764346,1741545047709,-500.0,8.493e-05,2]
[355764347,1741545047719,-500.0,8.493e-05,2]
[355764348,1741545047729,-500.0,8.493e-05,2]
[355764349,1741545047739,-500.0,8.493e-05,2]
[355764350,1741545047749,-500.0,8.493e-05,2]
[355764351,1741545047758,-500.0,8.493e-05,2]
[355764352,1741545047767,-500.0,8.493e-05,2]
[355764353,1741545047780,-500.0,8.493e-05,2]
[355764354,1741545047790,-500.0,8.493e-05,2]
[355764355,1741545047800,-500.0,8.493e-05,2]
[355764356,1741545047810,-500.0,8.493e-05,2]
[355764357,1741545047821,-500.0,8.493e-05,2]
[355764358,1741545047831,-500.0,8.493e-05,2]
[355764359,1741545047840,-500.0,8.493e-05,2]
[355764360,1741545047849,-500.0,8.493e-05,2]
[355764361,1741545047859,-500.0,8.493e-05,2]
[355764362,1741545047869,-500.0,8.493e-05,2]
[355764363,1741545047878,-500.0,8.493e-05,2]
[355764364,1741545047887,-500.0,8.493e-05,2]
[355764365,1741545047897,-500.0,8.493e-05,2]
[355764366,1741545047907,-500.0,8.493e-05,2]
[355764367,1741545047917,-500.0,8.493e-05,2]
[355764368,1741545047928,-500.0,8.493e-05,2]
[355764369,1741545047938,-500.0,8.493e-05,2]
[355764370,1741545048020,-500.0,8.493e-05,2]
[355764371,1741545048036,-500.0,8.493e-05,2]
[355764372,1741545048046,-500.0,8.493e-05,2]
[355764373,1741545048057,-500.0,8.493e-05,2]
[355764374,1741545048067,-500.0,8.493e-05,2]
[355764375,1741545048077,-500.0,8.493e-05,2]
[355764376,1741545048087,-1414.86,8.493e-05,2]
[355764377,1741545048096,-500.0,8.493e-05,2]
[355764378,1741545048106,-500.0,8.493e-05,2]
[355764379,1741545048118,-500.0,8.493e-05,2]
[355764380,1741545048128,-500.0,8.493e-05,2]
[355764381,1741545048138,-500.0,8.493e-05,2]
[355764382,1741545048148,-500.0,8.493e-05,2]
[355764383,1741545048159,-500.0,8.493e-05,2]
[355764384,1741545048169,-500.0,8.493e-05,2]
[355764385,1741545048179,-500.0,8.493e-05,2]
[355764386,1741545048189,-500.0,8.493e-05,2]
[355764387,1741545048199,-511.6058964,8.493e-05,2]
[355764388,1741545048209,-680.49,8.493e-05,2]
[355764389,1741545048219,-500.0,8.493e-05,2]
[355764390,1741545048229,-500.0,8.493e-05,2]
[355764391,1741545048239,-506.43443181,8.493e-05,2]
[355764392,1741545048249,-500.0,8.493e-05,2]
[355764393,1741545048259,-500.0,8.493e-05,2]
[355764394,1741545048268,-500.0,8.493e-05,2]
[355764395,1741545048281,-500.0,8.493e-05,2]
[355764396,1741545048290,-500.0,8.493e-05,2]
[355764397,1741545048300,-500.0,8.493e-05,2]
[355764398,1741545048310,-500.0,8.493e-05,2]
[355764399,1741545048320,-516.88879384,8.493e-05,2]
[355764400,1741545048330,-500.0,8.493e-05,2]
[355764401,1741545048340,-506.23509387,8.493e-05,2]
[355764402,1741545048351,-500.0,8.493e-05,2]
[355764403,1741545048360,-500.0,8.493e-05,2]
[355764404,1741545048371,-500.0,8.493e-05,2]
[355764405,1741545048381,-500.0,8.493e-05,2]
[355764406,1741545048391,-583.57,8.493e-05,2]
[355764407,1741545048402,-500.0,8.493e-05,2]
[355764408,1741545048413,-500.0,8.493e-05,2]
[355764409,1741545048424,-510.88978144,8.493e-05,2]
[355764410,1741545048435,-500.0,8.493e-05,2]
[355764411,1741545048451,-500.0,8.493e-05,2]
[355764412,1741545048461,-500.0,8.493e-05,2]
[355764413,1741545048471,-511.47094766,8.493e-05,2]
[355764414,1741545048481,-500.0,8.493e-05,2]
[355764415,1741545048491,-500.0,8.493e-05,2]
[355764416,1741545048501,-500.0,8.493e-05,2]
[355764417,1741545048512,-500.0,8.493e-05,2]
[355764418,1741545048522,-500.0,8.493e-05,2]
[355764419,1741545048535,-519.00697378,8.493e-05,2]
[355764420,1741545048547,-500.0,8.493e-05,2]
[355764421,1741545048558,-500.0,8.493e-05,2]
[355764422,1741545048568,-500.0,8.493e-05,2]
[355764423,1741545048578,-500.0,8.493e-05,2]
[355764424,1741545048587,-507.98101923,8.493e-05,2]
[355764425,1741545048596,-500.0,8.493e-05,2]
[355764426,1741545048607,-529.06,8.493e-05,2]
[355764427,1741545048617,-500.0,8.493e-05,2]
[355764428,1741545048627,-500.0,8.493e-05,2]
[355764429,1741545048637,-500.56157279,8.493e-05,2]
[355764430,1741545048647,-500.0,8.493e-05,2]
[355764431,1741545048656,-503.42974353,8.493e-05,2]
[355764432,1741545048666,-500.0,8.493e-05,2]
[355764433,1741545048675,-500.0,8.493e-05,2]
[355764434,1741545048685,-500.0,8.493e-05,2]
[355764435,1741545048694,-500.0,8.493e-05,2]
[355764436,1741545048703,-193.02250015,8.493e-05,2]
[355764437,1741545048713,-500.0,8.493e-05,2]
[355764438,1741545048723,-500.0,8.493e-05,2]
[355764439,1741545048732,-500.0,8.493e-05,2]
[355764440,1741545048741,-500.0,8.493e-05,2]
[355764441,1741545048751,-500.0,8.493e-05,2]
[355764442,1741545048761,-500.0,8.493e-05,2]
[355764443,1741545048770,-500.0,8.493e-05,2]
[355764444,1741545048783,-500.0,8.493e-05,2]
[355764445,1741545048793,-500.0,8.493e-05,2]
[355764446,1741545048803,-500.0,8.493e-05,2]
[355764447,1741545048814,-500.0,8.493e-05,2]
[355764448,1741545048824,-500.0,8.493e-05,2]
[355764449,1741545048834,-500.0,8.493e-05,2]
[355764450,1741545048844,-500.0,8.493e-05,2]
[355764451,1741545048855,-500.0,8.493e-05,2]
[355764452,1741545048865,-500.0,8.493e-05,2]
[355764453,1741545048875,-500.0,8.493e-05,2]
[355764454,1741545048884,-500.0,8.493e-05,2]
[355764455,1741545048893,-500.0,8.493e-05,2]
[355764456,1741545048903,-500.0,8.493e-05,2]
[355764457,1741545048913,-500.0,8.493e-05,2]
[355764458,1741545048923,-500.0,8.493e-05,2]
[355764459,1741545048933,-500.0,8.493e-05,2]
[355764460,1741545048944,-500.0,8.493e-05,2]
[355764461,1741545048953,-500.0,8.493e-05,2]
[355764462,1741545048964,-500.0,8.493e-05,2]
[355764463,1741545048974,-542.47319918,8.493e-05,2]
[355764464,1741545048984,-500.0,8.493e-05,2]
[355764465,1741545048993,-505.88370522,8.493e-05,2]
[355764466,1741545049003,-500.0,8.493e-05,2]
[355764467,1741545049012,-500.0,8.493e-05,2]
[355764468,1741545049023,-500.0,8.493e-05,2]
[355764469,1741545049034,-505.90693554,8.493e-05,2]
[355764470,1741545049045,-500.0,8.493e-05,2]
[355764471,1741545049056,-500.0,8.493e-05,2]
[355764472,1741545049066,-500.0,8.493e-05,2]
[355764473,1741545049076,-505.80177052,8.493e-05,2]
[355764474,1741545049086,-162.97813699,8.493e-05,2]
[355764475,1741545049097,-505.059681,8.493e-05,2]
[355764476,1741545049106,-500.0,8.493e-05,2]
[355764477,1741545049116,-500.0,8.493e-05,2]
[355764478,1741545049126,-500.0,8.493e-05,2]
[355764479,1741545049136,-500.0,8.493e-05,2]
[355764480,1741545049147,-500.0,8.493e-05,2]
[355764481,1741545049158,-500.0,8.493e-05,2]
[355764482,1741545049167,-500.0,8.493e-05,2]
[355764483,1741545049178,-508.65699868,8.493e-05,2]
[355764484,1741545049187,-504.4130395,8.493e-05,2]
[355764485,1741545049198,-500.0,8.493e-05,2]
[355764486,1741545049208,-503.16847415,8.493e-05,2]
[355764487,1741545049218,-500.0,8.493e-05,2]
[355764488,1741545049228,-500.0,8.493e-05,2]
[355764489,1741545049238,-500.0,8.493e-05,2]
[355764490,1741545049247,-502.88584465,8.493e-05,2]
[355764491,1741545049256,-500.0,8.493e-05,2]
[355764492,1741545049265,-500.0,8.493e-05,2]
[355764493,1741545049275,-633.68,8.493e-05,2]
[355764494,1741545049288,-511.68326401,8.493e-05,2]
[355764495,1741545049298,-701.25,8.493e-05,2]
[355764496,1741545049307,-500.0,8.493e-05,2]
[355764497,1741545049317,-500.0,8.493e-05,2]
[355764498,1741545049328,-500.0,8.493e-05,2]
[355764499,1741545049338,-2272.18,8.493e-05,2]